fUSD/lending_fUSD_20260201
["ID","MTS","AMOUNT","RATE_DAILY","PERIOD"]
[404219129,1769973041133,-500.0,0.00016206,2]
[404219130,1769973041144,-500.0,0.00016206,2]
[404219131,1769973041155,-151.0,0.00016206,2]
[404219132,1769973041165,-500.0,0.00016206,2]
[404219133,1769973041176,-500.0,0.00016206,2]
[404219134,1769973041188,-151.0,0.00016206,2]
[404219135,1769973041199,-500.0,0.00016206,2]
[404219136,1769973041209,-151.0,0.00016206,2]
[404219137,1769973041220,-500.0,0.00016206,2]
[404219138,1769973041232,-500.0,0.00016206,2]
[404219139,1769973041244,-151.0,0.00016206,2]
[404219140,1769973041254,-500.0,0.00016206,2]
[404219141,1769973041265,-500.0,0.00016206,2]
[404219142,1769973041277,-151.0,0.00016206,2]
[404219143,1769973041287,-500.0,0.00016206,2]
[404219144,1769973041298,-500.0,0.00016206,2]
[404219145,1769973041309,-500.0,0.00016206,2]
[404219146,1769973041320,-151.0,0.00016206,2]
[404219147,1769973041332,-500.0,0.00016206,2]
[404219148,1769973041342,-200.0,0.00016206,2]
[404219149,1769973041352,-200.0,0.00016206,2]
[404219150,1769973041363,-500.0,0.00016206,2]
[404219151,1769973041373,-465.78763801,0.00016206,2]
[404219152,1769973041384,-500.7971561,0.00016215,2]
[404219153,1769973041395,-500.40958663,0.00016215,2]
[404219154,1769973041405,-626.57032524,0.00016215,2]
[404219155,1769973041416,-333.63674101,0.00016215,2]
[404219156,1769973041427,-500.76188298,0.00016215,2]
[404219157,1769973041437,-500.36134052,0.00016215,2]
[404219158,1769973041448,-500.82401357,0.00016215,2]
[404219159,1769973041459,-160.17285395,0.00016215,2]
[404219160,1769973041469,-500.13624415,0.00016215,2]
[404219161,1769973041480,-500.0,0.00016215,2]
[404219162,1769973041490,-175.77488165,0.00016215,2]
[404219163,1769973041500,-500.89443715,0.00016215,2]
[404219164,1769973041510,-208.40720819,0.00016215,2]
[404219165,1769973041521,-500.91864191,0.00016215,2]
[404219166,1769973041532,-500.69372146,0.00016215,2]
[404219167,1769973041542,-432.17920076,0.00016215,2]
[404219168,1769973041551,-161.52754955,0.00016215,2]
[404219169,1769973041562,-161.96888035,0.00016215,2]
[404219170,1769973041572,-500.44195081,0.00016215,2]
[404219171,1769973041582,-160.18403092,0.00016215,2]
[404219172,1769973041593,-500.0,0.00016215,2]
[404219173,1769973041606,-500.9734639,0.00016215,2]
[404219174,1769973041616,-501.26182196,0.00016215,2]
[404219175,1769973041627,-210.3644324,0.00016215,2]
[404219176,1769973041638,-500.77325853,0.00016215,2]
[404219177,1769973041648,-500.45016231,0.00016215,2]
[404219178,1769973041658,-500.51837195,0.00016215,2]
[404219179,1769973041668,-500.99163664,0.00016215,2]
[404219180,1769973041678,-500.0,0.00016215,2]
[404219181,1769973041689,-500.0,0.00016215,2]
[404219182,1769973041699,-500.82999627,0.00016215,2]
[404219183,1769973041708,-500.0,0.00016215,2]
[404219184,1769973041718,-160.07078646,0.00016215,2]
[404219185,1769973041728,-284.47980203,0.00016215,2]
[404219186,1769973041738,-500.0,0.00016215,2]
[404219187,1769973041748,-500.67654953,0.00016215,2]
[404219188,1769973041759,-500.44403009,0.00016215,2]
[404219189,1769973041769,-169.74769321,0.00016215,2]
[404219190,1769973041779,-500.0,0.00016215,2]
[404219191,1769973041789,-500.0,0.00016215,2]
[404219192,1769973041798,-512.45868971,0.00016215,2]
[404219193,1769973041811,-500.58361671,0.00016215,2]
[404219194,1769973041822,-500.0,0.00016215,2]
[404219195,1769973041832,-500.54404873,0.00016215,2]
[404219196,1769973041843,-392.58436043,0.00016215,2]
[404219197,1769973041854,-165.95473765,0.00016215,2]
[404219198,1769973041869,-500.28380904,0.00016215,2]
[404219199,1769973041879,-162.70376611,0.00016215,2]
[404219200,1769973041890,-500.22501364,0.00016215,2]
[404219201,1769973041900,-500.78479559,0.00016215,2]
[404219202,1769973041910,-309.32938346,0.00016215,2]
[404219203,1769973041921,-500.84256403,0.00016215,2]
[404219204,1769973041931,-501.49582385,0.00016215,2]
[404219205,1769973041942,-162.14060441,0.00016215,2]
[404219206,1769973041952,-164.79829562,0.00016215,2]
[404219207,1769973041963,-500.0,0.00016215,2]
[404219208,1769973041973,-500.60514284,0.00016215,2]
[404219209,1769973041984,-500.23746588,0.00016215,2]
[404219210,1769973041994,-208.86257805,0.00016215,2]
[404219211,1769973042004,-501.55130892,0.00016215,2]
[404219212,1769973042014,-509.42618613,0.00016215,2]
[404219213,1769973042025,-501.09354787,0.00016215,2]
[404219214,1769973042036,-500.0,0.00016215,2]
[404219215,1769973042046,-500.8695205,0.00016215,2]
[404219216,1769973042057,-500.73429157,0.00016215,2]
[404219217,1769973042067,-500.0,0.00016215,2]
[404219218,1769973042078,-500.0,0.00016215,2]
[404219219,1769973042089,-500.52349132,0.00016215,2]
[404219220,1769973042100,-500.28379137,0.00016215,2]
[404219221,1769973042111,-500.72482748,0.00016215,2]
[404219222,1769973042123,-500.0,0.00016215,2]
[404219223,1769973042134,-500.8043205,0.00016215,2]
[404219224,1769973042144,-471.58451912,0.00016215,2]
[404219225,1769973042154,-589.09,0.00016275,2]
[404219226,1769973042165,-264.43161989,0.00016438,2]
[404219227,1769973042175,-500.0,0.00016438,2]
[404219228,1769973042186,-500.0,0.00016438,2]
[404219229,1769973042196,-500.0,0.00016438,2]
[404219230,1769973042207,-500.0,0.00016438,2]
[404219231,1769973042217,-500.0,0.00016438,2]
[404219232,1769973042227,-639.68949456,0.00016438,2]
[404219233,1769973042238,-494.33434811,0.00016451,2]
[404219234,1769973042249,-536.29,0.00016464,2]
[404219235,1769973042260,-433.0,0.00016549,2]
[404219236,1769973042270,-3254.62917349,0.00016551,2]
[404219237,1769973042282,-1251.80770273,0.00016551,2]
[404219238,1769973042292,-378.38431742,0.00016551,2]
[404219239,1769973042302,-184.44067477,0.00016551,2]
[404219240,1769973042313,-6222.0,0.00016624,2]
[404219241,1769973042323,-236.222864,0.00016658,2]
[404219242,1769973042334,-159.03791527,0.00016684,2]
[404219243,1769973042344,-536.29,0.00016738,2]
[404219244,1769973042355,-500.0,0.00016754,2]
[404219245,1769973042365,-237.2586,0.00016822,2]
[404219246,1769973042376,-2327.6382,0.00016822,2]
[404219247,1769973042386,-578.20924308,0.00016837,2]
[404219248,1769973042396,-174.61919141,0.00016837,2]
[404219249,1769973042406,-500.0,0.00016837,2]
[404219250,1769973042416,-250.0,0.00016837,2]
[404219251,1769973042426,-500.0,0.00016837,2]
[404219252,1769973042436,-250.0,0.00016837,2]
[404219253,1769973042447,-250.0,0.00016837,2]
[404219254,1769973042458,-500.0,0.00016837,2]
[404219255,1769973042468,-250.0,0.00016837,2]
[404219256,1769973042480,-250.0,0.00016837,2]
[404219257,1769973042491,-721.12765535,0.00016837,2]
[404219258,1769973042502,-250.0,0.00016837,2]
[404219259,1769973042513,-500.0,0.00016837,2]
[404219260,1769973042524,-250.0,0.00016837,2]
[404219261,1769973042535,-250.0,0.00016837,2]
[404219262,1769973042861,-500.0,0.00016837,2]
[404219263,1769973042871,-250.0,0.00016837,2]
[404219264,1769973042880,-250.0,0.00016837,2]
[404219265,1769973042889,-500.0,0.00016837,2]
[404219266,1769973042899,-250.0,0.00016837,2]
[404219267,1769973042908,-250.0,0.00016837,2]
[404219268,1769973042917,-500.0,0.00016837,2]
[404219269,1769973042926,-250.0,0.00016837,2]
[404219270,1769973042935,-250.0,0.00016837,2]
[404219271,1769973042945,-500.0,0.00016837,2]
[404219272,1769973042954,-250.0,0.00016837,2]
[404219274,1769973042963,-250.0,0.00016837,2]
[404219277,1769973042973,-250.0,0.00016837,2]
[404219278,1769973042982,-250.0,0.00016837,2]
[404219280,1769973042991,-500.0,0.00016837,2]
[404219282,1769973042999,-250.0,0.00016837,2]
[404219284,1769973043009,-250.0,0.00016837,2]
[404219286,1769973043019,-500.0,0.00016837,2]
[404219287,1769973043027,-250.0,0.00016837,2]
[404219288,1769973043037,-250.0,0.00016837,2]
[404219289,1769973043046,-500.0,0.00016837,2]
[404219290,1769973043055,-500.0,0.00016837,2]
[404219291,1769973043064,-500.0,0.00016837,2]
[404219292,1769973043074,-500.0,0.00016837,2]
[404219293,1769973043083,-500.0,0.00016837,2]
[404219294,1769973043093,-500.0,0.00016837,2]
[404219295,1769973043102,-500.0,0.00016837,2]
[404219296,1769973043111,-500.0,0.00016837,2]
[404219297,1769973043121,-500.0,0.00016837,2]
[404219298,1769973043130,-500.0,0.00016837,2]
[404219299,1769973043139,-500.0,0.00016837,2]
[404219300,1769973043150,-151.0,0.00016837,2]
[404219301,1769973043159,-500.0,0.00016837,2]
[404219302,1769973043169,-336.18373885,0.00016837,2]
[404219303,1769973043178,-151.0,0.00016837,2]
[404219304,1769973043188,-209.40437684,0.00016837,2]
[404219305,1769973043197,-151.0,0.00016837,2]
[404219306,1769973043206,-1428.38747117,0.00016837,2]
[404219307,1769973043215,-151.0,0.00016837,2]
[404219308,1769973043225,-151.0,0.00016837,2]
[404219309,1769973043234,-151.0,0.00016837,2]
[404219310,1769973043243,-151.0,0.00016837,2]
[404219311,1769973043252,-151.0,0.00016837,2]
[404219312,1769973043261,-151.0,0.00016837,2]
[404219313,1769973043270,-151.0,0.00016837,2]
[404219314,1769973043280,-151.0,0.00016837,2]
[404219315,1769973043290,-250.0,0.00016837,2]
[404219316,1769973043299,-250.0,0.00016837,2]
[404219317,1769973043308,-250.0,0.00016837,2]
[404219318,1769973043318,-250.0,0.00016837,2]
[404219319,1769973043327,-250.0,0.00016837,2]
[404219320,1769973043336,-322.6107,0.00016837,2]
[404219321,1769973043345,-250.0,0.00016837,2]
[404219322,1769973043354,-250.0,0.00016837,2]
[404219323,1769973043363,-250.0,0.00016837,2]
[404219324,1769973043373,-250.0,0.00016837,2]
[404219325,1769973043382,-250.0,0.00016837,2]
[404219326,1769973043391,-250.0,0.00016837,2]
[404219327,1769973043400,-250.0,0.00016837,2]
[404219328,1769973043410,-500.0,0.00016837,2]
[404219329,1769973043419,-250.0,0.00016837,2]
[404219330,1769973043428,-250.0,0.00016837,2]
[404219331,1769973043440,-250.0,0.00016837,2]
[404219332,1769973043451,-241.11788993,0.00016837,2]
[404219333,1769973043460,-250.0,0.00016837,2]
[404219334,1769973043471,-250.0,0.00016837,2]
[404219335,1769973043481,-500.0,0.00016837,2]
[404219336,1769973043490,-250.0,0.00016837,2]
[404219337,1769973043499,-250.0,0.00016837,2]
[404219338,1769973043509,-500.0,0.00016837,2]
[404219339,1769973043518,-250.0,0.00016837,2]
[404219340,1769973043528,-250.0,0.00016837,2]
[404219341,1769973043537,-209.40437684,0.00016837,2]
[404219342,1769973043547,-250.0,0.00016837,2]
[404219343,1769973043556,-500.0,0.00016837,2]
[404219344,1769973043566,-500.0,0.00016837,2]
[404219345,1769973043575,-500.0,0.00016837,2]
[404219346,1769973043586,-500.0,0.00016837,2]
[404219347,1769973043595,-500.0,0.00016837,2]
[404219348,1769973043604,-500.0,0.00016837,2]
[404219349,1769973043614,-500.0,0.00016837,2]
[404219350,1769973043623,-500.0,0.00016837,2]
[404219351,1769973043633,-500.0,0.00016837,2]
[404219352,1769973043642,-500.0,0.00016837,2]
[404219353,1769973043651,-500.0,0.00016837,2]
[404219354,1769973043661,-500.0,0.00016837,2]
[404219355,1769973043671,-500.0,0.00016837,2]
[404219356,1769973043680,-500.0,0.00016837,2]
[404219357,1769973043691,-449.87473057,0.00016837,2]
[404219358,1769973043701,-500.0,0.00016837,2]
[404219359,1769973043711,-500.0,0.00016837,2]
[404219360,1769973043720,-500.0,0.00016837,2]
[404219361,1769973043729,-500.0,0.00016837,2]
[404219362,1769973043738,-500.0,0.00016837,2]
[404219363,1769973043747,-500.0,0.00016837,2]
[404219364,1769973043756,-500.0,0.00016837,2]
[404219365,1769973043766,-217.15233878,0.00016892,2]
[404219366,1769973043775,-637.24,0.00016933,2]
[404219367,1769973043784,-225.18697532,0.00016947,2]
[404219368,1769973043794,-233.51889341,0.00017002,2]
[404219369,1769973043804,-536.29,0.00017012,2]
[404219370,1769973043817,-242.15909246,0.00017057,2]
[404219372,1769973043827,-166.64,0.00017065,2]
[404219373,1769973043836,-251.11897888,0.00017112,2]
[404219374,1769973043847,-260.4103811,0.00017167,2]
[404219376,1769973043856,-494.3343481,0.00017176,2]
[404219377,1769973043866,-2351.0,0.00017203,2]
[404219378,1769973043875,-270.0455652,0.00017222,2]
[404219379,1769973043886,-1000.0,0.0001726,2]
[404219380,1769973043896,-280.03725112,0.00017277,2]
[404219381,1769973043905,-236.222864,0.00017279,2]
[404219382,1769973043914,-536.29,0.00017286,2]
[404219383,1769973043923,-500.0,0.00017302,2]
[404219384,1769973043933,-290.39862941,0.00017332,2]
[404219385,1769973043942,-181.08010149,0.00017385,2]
[404219386,1769973043951,-217.15233878,0.00017385,2]
[404219387,1769973043960,-1481.23780761,0.00017385,2]
[404219388,1769973043969,-301.1433787,0.00017387,2]
[404219389,1769973043979,-1898.85844425,0.00017425,2]
[404219390,1769973043988,-1928.0,0.00017489,2]
[404219391,1769973043997,-3252.0,0.00017531,2]
[404219392,1769973044006,-6577.0,0.00017531,2]
[404219393,1769973044015,-2445.0,0.00017531,2]
[404219394,1769973044025,-1000.0,0.00017534,2]
[404219395,1769973044035,-231.0,0.00017548,2]
[404219396,1769973044044,-637.24,0.00017568,2]
[404219397,1769973044054,-1928.0,0.00017591,2]
[404219398,1769973044063,-168.0,0.00017594,2]
[404219399,1769973044072,-1928.0,0.00017621,2]
[404219400,1769973044082,-914.58949328,0.0001764,2]
[404219401,1769973044091,-7692.30222201,0.00017662,2]
[404219402,1769973044100,-168.0,0.00017673,2]
[404219403,1769973044110,-2500.0,0.0001773,2]
[404219404,1769973044119,-168.0,0.00017762,2]
[404219405,1769973044128,-166.64,0.00017769,2]
[404219406,1769973044137,-7692.30222199,0.00017781,2]
[404219407,1769973044146,-156.91177194,0.000178,2]
[404219408,1769973044156,-2314.0,0.000178,2]
[404219409,1769973044165,-1000.0,0.00017808,2]
[404219410,1769973044175,-109605.83836455,0.0001783,2]
[404219411,1769973044184,-156.91177193,0.00017833,2]
[404219412,1769973044193,-168.0,0.00017845,2]
[404219413,1769973044206,-372.57983118,0.00017848,2]
[404219414,1769973044215,-983.24406927,0.00017848,2]
[404219415,1769973044224,-1734.55908583,0.00017848,2]
[404219416,1769973044234,-2594.79665524,0.00017848,2]
[404219417,1769973044244,-3510.8469,0.00017848,2]
[404219418,1769973044253,-500.0,0.0001785,2]
[404219419,1769973044262,-200.0,0.00017855,2]
[404219420,1769973044271,-200.0,0.00017856,2]
[404219421,1769973044281,-156.91177193,0.00017867,2]
[404219422,1769973044291,-342.84674472,0.00017899,2]
[404219423,1769973044300,-531.74116736,0.00017899,2]
[404219424,1769973044310,-500.0,0.00017899,2]
[404219425,1769973044319,-500.0,0.00017899,2]
[404219426,1769973044329,-500.0,0.00017899,2]
[404219427,1769973044338,-500.0,0.00017899,2]
[404219428,1769973044347,-500.0,0.00017899,2]
[404219429,1769973044356,-500.0,0.00017899,2]
[404219430,1769973044365,-500.0,0.00017899,2]
[404219431,1769973044374,-500.0,0.00017899,2]
[404219432,1769973044383,-500.0,0.00017899,2]
[404219433,1769973044392,-500.0,0.00017899,2]
[404219434,1769973044401,-2008.34441638,0.00017899,2]
[404219435,1769973044411,-500.0,0.00017899,2]
[404219436,1769973044420,-500.0,0.00017899,2]
[404219437,1769973044429,-500.0,0.00017899,2]
[404219438,1769973044438,-500.0,0.00017899,2]
[404219439,1769973044448,-208.77047208,0.00017899,2]
[404219440,1769973044457,-500.0,0.00017899,2]
[404219441,1769973044467,-500.0,0.00017899,2]
[404219442,1769973044476,-500.0,0.00017899,2]
[404219443,1769973044485,-500.0,0.00017899,2]
[404219444,1769973044495,-187.94088231,0.00017899,2]
[404219445,1769973044505,-500.0,0.00017899,2]
[404219446,1769973044514,-500.0,0.00017899,2]
[404219447,1769973044523,-500.0,0.00017899,2]
[404219448,1769973044533,-500.0,0.00017899,2]
[404219449,1769973044542,-500.0,0.00017899,2]
[404219450,1769973044551,-500.0,0.00017899,2]
[404219451,1769973044561,-500.0,0.00017899,2]
[404219452,1769973044570,-500.0,0.00017899,2]
[404219453,1769973044580,-500.0,0.00017899,2]
[404219454,1769973044589,-500.0,0.00017899,2]
[404219455,1769973044598,-500.0,0.00017899,2]
[404219456,1769973044608,-500.0,0.00017899,2]
[404219457,1769973044618,-581.80646883,0.00017899,2]
[404219458,1769973044627,-500.0,0.00017899,2]
[404219459,1769973044637,-500.0,0.00017899,2]
[404219460,1769973044646,-500.0,0.00017899,2]
[404219461,1769973044656,-500.0,0.00017899,2]
[404219462,1769973044665,-500.0,0.00017899,2]
[404219463,1769973044675,-500.0,0.00017899,2]
[404219464,1769973044684,-500.0,0.00017899,2]
[404219465,1769973044693,-500.0,0.00017899,2]
[404219466,1769973044703,-500.0,0.00017899,2]
[404219467,1769973044712,-500.0,0.00017899,2]
[404219468,1769973044722,-500.0,0.00017899,2]
[404219469,1769973044731,-500.0,0.00017899,2]
[404219470,1769973044740,-500.0,0.00017899,2]
[404219471,1769973044749,-500.0,0.00017899,2]
[404219472,1769973044758,-409.78,0.00017899,2]
[404219473,1769973044767,-500.0,0.00017899,2]
[404219474,1769973044776,-500.0,0.00017899,2]
[404219475,1769973044786,-500.0,0.00017899,2]
[404219476,1769973044795,-500.0,0.00017899,2]
[404219477,1769973044804,-500.0,0.00017899,2]
[404219478,1769973044818,-500.0,0.00017899,2]
[404219479,1769973044827,-500.0,0.00017899,2]
[404219480,1769973044836,-500.0,0.00017899,2]
[404219481,1769973044845,-500.0,0.00017899,2]
[404219482,1769973044856,-500.0,0.00017899,2]
[404219483,1769973044865,-500.0,0.00017899,2]
[404219484,1769973044875,-500.0,0.00017899,2]
[404219485,1769973044884,-326.23818299,0.00017899,2]
[404219486,1769973044894,-500.0,0.00017899,2]
[404219487,1769973044903,-500.0,0.00017899,2]
[404219488,1769973044912,-500.0,0.00017899,2]
[404219489,1769973044922,-500.0,0.00017899,2]
[404219490,1769973044932,-500.0,0.00017899,2]
[404219491,1769973044941,-500.0,0.00017899,2]
[404219492,1769973044950,-500.0,0.00017899,2]
[404219493,1769973044960,-500.0,0.00017899,2]
[404219494,1769973044971,-500.0,0.00017899,2]
[404219495,1769973044981,-500.0,0.00017899,2]
[404219496,1769973044991,-500.0,0.00017899,2]
[404219497,1769973045000,-500.0,0.00017899,2]
[404219498,1769973045010,-500.0,0.00017899,2]
[404219499,1769973045019,-500.0,0.00017899,2]
[404219500,1769973045029,-500.0,0.00017899,2]
[404219501,1769973045039,-500.0,0.00017899,2]
[404219502,1769973045048,-500.0,0.00017899,2]
[404219503,1769973045057,-500.0,0.00017899,2]
[404219504,1769973045066,-343.302913,0.00017899,2]
[404219505,1769973045076,-500.0,0.00017899,2]
[404219506,1769973045086,-500.0,0.00017899,2]
[404219507,1769973045095,-500.0,0.00017899,2]
[404219508,1769973045105,-500.0,0.00017899,2]
[404219509,1769973045114,-500.0,0.00017899,2]
[404219510,1769973045124,-500.0,0.00017899,2]
[404219511,1769973045133,-10000.0,0.000179,2]
[404219512,1769973045144,-1000.0,0.000179,2]
[404219513,1769973045153,-156.91177193,0.000179,2]
[404219514,1769973045162,-236.222864,0.000179,2]
[404219515,1769973045172,-1500.0,0.000179,2]
[404219516,1769973045181,-7692.30222199,0.000179,2]
[404219517,1769973045190,-408.85606336,0.000179,2]
[404219518,1769973045200,-150.0,0.0001791,2]
[404219519,1769973045209,-150.149,0.0001791,2]
[404219520,1769973045219,-372.99,0.0001791,2]
[404219521,1769973045228,-1334.0,0.0001791,2]
[404219522,1769973045237,-616.0,0.0001791,2]
[404219523,1769973045247,-917.0,0.0001791,2]
[404219524,1769973045256,-187.78006525,0.00017933,2]
[404219525,1769973045265,-225.18697532,0.00017933,2]
[404219526,1769973045274,-1536.04360649,0.00017933,2]
[404219527,1769973045286,-3657.0,0.00017954,2]
[404219528,1769973045295,-500.34418514,0.00017973,2]
[404219529,1769973045304,-188.75736074,0.00017989,2]
[404219530,1769973045313,-188.75736074,0.0001799,2]
[404219531,1769973045322,-150.0,0.00017999,2]
[404219532,1769973045331,-150.0,0.00017999,2]
[404219533,1769973045341,-150.0,0.00017999,2]
[404219534,1769973045349,-150.0,0.00017999,2]
[404219535,1769973045358,-150.0,0.00017999,2]
[404219536,1769973045368,-150.0,0.00017999,2]
[404219537,1769973045377,-240.62946663,0.00017999,2]
[404219538,1769973045386,-155.0,0.00017999,2]
[404219539,1769973045396,-180.6021233,0.00017999,2]
[404219540,1769973045405,-35746.3579338,0.00017999,2]
[404219541,1769973045414,-335544.6106503,0.00017999,2]
[404219542,1769973045423,-22020.1038695,0.00017999,2]
[404219543,1769973045432,-28838.1957716,0.00017999,2]
[404219544,1769973045441,-172.0369099,0.00017999,2]
[404219545,1769973045450,-300.0,0.00017999,2]
[404219546,1769973045460,-1538.6158385,0.00017999,2]
[404219547,1769973045469,-300.0,0.00017999,2]
[404219548,1769973045479,-1000.68755277,0.00018,2]
[404219549,1769973045488,-1545700.27931547,0.00018,2]
[404219550,1769973045498,-2644683.21269892,0.00018,2]
[404219551,1769973045508,-189029.86958811,0.00018,2]
[404219552,1769973045518,-395783.4876659,0.00018,2]
[404219553,1769973045527,-1000.0,0.00018,2]
[404219554,1769973045536,-1000.0,0.00018,2]
[404219555,1769973045546,-1000.0,0.00018,2]
[404219556,1769973045555,-1000.0,0.00018,2]
[404219557,1769973045564,-1000.0,0.00018,2]
[404219559,1769973045573,-1000.0,0.00018,2]
[404219560,1769973045583,-1000.0,0.00018,2]
[404219562,1769973045592,-1000.0,0.00018,2]
[404219564,1769973045601,-1000.0,0.00018,2]
[404219566,1769973045610,-1000.0,0.00018,2]
[404219568,1769973045620,-1000.0,0.00018,2]
[404219571,1769973045629,-1000.0,0.00018,2]
[404219573,1769973045639,-1000.0,0.00018,2]
[404219575,1769973045647,-1000.0,0.00018,2]
[404219577,1769973045656,-1000.0,0.00018,2]
[404219579,1769973045666,-1000.0,0.00018,2]
[404219581,1769973045676,-1000.0,0.00018,2]
[404219583,1769973045685,-1000.0,0.00018,2]
[404219585,1769973045694,-1000.0,0.00018,2]
[404219586,1769973045703,-1000.0,0.00018,2]
[404219587,1769973045714,-1000.0,0.00018,2]
[404219588,1769973045723,-1000.0,0.00018,2]
[404219589,1769973045732,-1000.0,0.00018,2]
[404219590,1769973045741,-1000.0,0.00018,2]
[404219591,1769973045755,-1000.0,0.00018,2]
[404219592,1769973045763,-1000.0,0.00018,2]
[404219593,1769973045772,-1000.0,0.00018,2]
[404219594,1769973045781,-1026.12525715,0.00018,2]
[404219595,1769973045791,-7500.21523255,0.00018,2]
[404219596,1769973045800,-749565.09862459,0.00018,2]
[404219597,1769973046103,-2721.99912705,0.00018,2]
[404219598,1769973046114,-315.041611,0.00018,2]
[404219599,1769973046125,-335.38,0.00018,2]
[404219600,1769973046136,-327.84001672,0.00018,2]
[404219601,1769973046165,-2189.73986621,0.00018,2]
[404219617,1769973278015,1517.31,0.00012702,2]
[404219702,1769974114075,-414.04480227,0.00013,2]
[404219703,1769974114100,-258.36218806,0.0001312,2]
[404219707,1769974117177,-252.76591589,0.0001312,2]
[404219708,1769974153084,-488.87189605,0.0001312,2]
[404219709,1769974153105,-329.6288,0.00013713,2]
[404219796,1769974232359,-273.517,0.00013783,2]
[404219797,1769974232369,-195.0,0.00013783,2]
[404219798,1769974232379,-946.346,0.00013783,2]
[404219799,1769974232389,-264.0,0.00013783,2]
[404219800,1769974232399,-272.57070892,0.0001387,2]
[404219801,1769974232408,-195.0,0.00013879,2]
[404219802,1769974232418,-373.45636322,0.00013954,2]
[404219803,1769974232429,-300.0,0.00013963,2]
[404219804,1769974232439,-1200.0,0.00013963,2]
[404219805,1769974232449,-150.0,0.00013963,2]
[404219806,1769974232459,-300.0,0.00013963,2]
[404219807,1769974232469,-292.28980545,0.00013963,2]
[404219808,1769974232479,-500.0,0.00013963,2]
[404219809,1769974232488,-297.01993548,0.00013963,2]
[404219810,1769974232497,-2011.20370579,0.00013964,2]
[404219811,1769974232507,-2011.20370579,0.00013964,2]
[404219812,1769974232516,-2011.20370579,0.00013964,2]
[404219813,1769974232525,-2011.20370579,0.00013964,2]
[404219814,1769974232535,-2011.20370579,0.00013964,2]
[404219815,1769974232544,-2011.20370579,0.00013964,2]
[404219816,1769974232553,-2011.20370579,0.00013964,2]
[404219817,1769974232562,-2011.20370579,0.00013964,2]
[404219818,1769974232572,-2327.6382,0.00013964,2]
[404219819,1769974232582,-2500.0,0.00013964,2]
[404219820,1769974232592,-92581.05028158,0.00013964,2]
[404219821,1769974232642,-380.48439534,0.00013963,2]
[404219822,1769974232652,-7647.49074219,0.00013964,2]
[404219876,1769974238375,-500.0,0.00013963,2]
[404219877,1769974238384,-1724.17408572,0.00013964,2]
[404219878,1769974238429,-6000.89731925,0.00013964,2]
[404219879,1769974238589,-485.4300017,0.00013964,2]
[404219880,1769974238600,-308.02610638,0.00013964,2]
[404219906,1769974240501,-4439.38579319,0.00013964,2]
[404219907,1769974240513,-558.7159579,0.00013964,2]
[404219908,1769974240526,-2892.63611492,0.00013964,2]
[404219909,1769974240538,-2783362.19359717,0.00013964,2]
[404219910,1769974240549,-500.0,0.00013971,2]
[404219911,1769974240558,-150.0,0.00013971,2]
[404219912,1769974240762,-150.0,0.00013971,2]
[404219913,1769974240772,-500.0,0.00013971,2]
[404219914,1769974240781,-150.0,0.00013971,2]
[404219915,1769974240791,-150.0,0.00013971,2]
[404219916,1769974240800,-500.0,0.00013971,2]
[404219917,1769974240810,-229.5686788,0.00013971,2]